bitfinex/quotes_ETHUSD_20260302
["timestamp","ask_amount","ask_price","bid_price","bid_amount"]
[1772432953778,6.63983109,1951.9,1951.3,4.45207726]
[1772432954071,4.5351851,1951.8,1951.1,6.83007726]
[1772432954275,4.26984631,1951.7,1951.1,2.378]
[1772432954781,5.55064962,1951.9,1951.2,4.35152387]
[1772432955150,4.26984631,1951.9,1951.2,4.35152387]
[1772432956570,4.26984631,1951.9,1951.2,6.72852387]
[1772432956775,5.55071525,1951.8,1951.2,8.009782]
[1772432957182,4.26984631,1951.8,1951.2,8.009782]
[1772432957354,1.28085002,1951.9,1951.3,4.16092347]
[1772432957679,4.34776886,1951.9,1951.2,3.65825813]
[1772432957850,4.34776886,1951.9,1951.2,2.377]
[1772432958050,4.34776886,1951.7,1951.2,2.377]
[1772432958471,4.34776886,1951.7,1951.2,3.65826253]
[1772432958676,1.28230768,1952.0,1951.4,5.44205496]
[1772432959446,1.28230768,1952.0,1951.5,4.16092347]
[1772432959447,0.00153886,1952.0,1951.5,4.16092347]
[1772432960388,0.00153886,1952.0,1951.7,4.16092347]
[1772432960549,0.001,1952.1,1951.7,4.16092347]
[1772432960745,0.001,1952.1,1951.6,6.53692347]
[1772432960985,4.34876886,1952.1,1951.4,5.44204403]
[1772432961182,6.45241485,1952.0,1951.4,6.53692347]
[1772432961348,6.45241485,1952.0,1951.4,7.81804402]
[1772432961554,4.34776886,1952.0,1951.4,3.65712055]
[1772432961766,0.001,1952.1,1951.5,4.16092347]
[1772432962153,0.001,1951.9,1951.5,4.16092347]
[1772432962681,0.001,1951.9,1951.6,1.2810002]
[1772432962881,0.001,1951.9,1951.6,5.44192367]
[1772432963249,0.001,1951.9,1951.7,4.16092347]
[1772432964582,0.001,1952.1,1951.7,4.16092347]
[1772432964778,0.001,1952.1,1951.7,5.44179743]
[1772432965360,0.001,1952.1,1951.7,1.28087396]
[1772432965781,0.001,1952.1,1951.6,5.44187521]
[1772432966280,0.001,1952.1,1951.7,4.16092347]
[1772432966980,0.001,1952.1,1951.8,1.28086894]
[1772432967773,0.001,1952.1,1951.8,5.44179241]
[1772432967968,0.001,1952.1,1951.8,7.81979241]
[1772432968854,0.001,1952.1,1951.8,5.44179241]
[1772432969080,0.001,1952.1,1951.8,7.82079241]
[1772432969695,2.67445085,1952.7,1951.8,7.82079241]
[1772432969696,1.28167329,1953.0,1951.9,4.16092347]
[1772432969985,4.34776886,1952.4,1951.9,2.379]
[1772432970368,4.34776886,1952.7,1951.9,2.379]
[1772432970568,4.34776886,1952.7,1951.9,6.53992347]
[1772432971588,4.34776886,1952.3,1951.6,2.379]
[1772432972692,4.34776886,1952.3,1951.6,2.378]
[1772432973480,5.62837535,1952.2,1951.6,2.378]
[1772432973999,5.62837535,1952.2,1951.6,3.65898323]
[1772432974289,5.62837535,1952.2,1951.6,1.28098323]
[1772432974590,4.34776886,1952.1,1951.3,5.44319184]
[1772432974898,4.34776886,1951.9,1951.3,1.28229486]
[1772432975399,5.62861997,1951.9,1951.3,0.0011]
[1772432976192,5.62857292,1951.9,1951.3,4.16202347]
[1772432977498,5.62857292,1951.9,1951.4,1.28113149]
[1772432977696,5.62857292,1951.9,1951.3,5.44317197]
[1772432978397,1.28080406,1951.9,1951.4,4.16092347]
[1772432978967,4.34776886,1951.8,1951.3,1.2822485]
[1772432979499,4.34776886,1951.8,1951.3,0.0011]
[1772432980895,4.34776886,1951.8,1951.3,4.16202347]
[1772432981495,5.62864179,1951.8,1951.3,5.44317016]
[1772432981675,4.34776886,1951.8,1951.3,5.44317016]
[1772432981992,5.6285315,1952.0,1951.4,4.16092347]
[1772432983194,4.34776886,1952.0,1951.4,4.16092347]
[1772432983766,5.62851216,1952.0,1951.4,5.44200677]
[1772432984687,4.34776886,1951.9,1951.4,4.16092347]
[1772432984888,4.34776886,1951.9,1951.4,5.4420492]
[1772432985268,5.62849232,1952.1,1951.5,4.16092347]
[1772432986502,1.28151321,1952.4,1951.8,4.16092347]
[1772432986806,5.62928207,1952.4,1951.8,4.16092347]
[1772432987397,4.2139361,1952.3,1951.8,4.16092347]
[1772432988474,5.49451104,1952.3,1951.8,5.44178455]
[1772432990501,4.51417064,1952.1,1951.6,0.0011]
[1772432990700,4.51417064,1951.9,1951.6,0.0011]
[1772432991571,4.2139361,1951.9,1951.6,0.0011]
[1772432991772,0.30023454,1952.0,1951.6,0.0011]
[1772432991773,4.51417064,1951.8,1951.6,0.0011]
[1772432991972,4.2139361,1951.8,1951.6,0.0011]
[1772432992903,5.49480831,1951.8,1951.6,0.0011]
[1772432993105,4.2139361,1951.8,1951.6,0.0011]
[1772432994087,1.2808571,1951.9,1951.6,0.0011]
[1772432994787,9.33702193,1952.0,1951.6,0.0011]
[1772432994788,5.49471353,1952.0,1951.6,0.0011]
[1772432995689,1.28072161,1952.1,1951.6,0.0011]
[1772432995904,1.28072161,1952.1,1951.6,4.14536285]
[1772432997497,1.28072161,1952.1,1951.7,4.14426285]
[1772432998384,5.49465771,1952.1,1951.6,0.0011]
[1772432998629,4.2139361,1952.0,1951.6,0.0011]
[1772432999126,4.2139361,1951.8,1951.5,0.0011]
[1772433000149,4.2139361,1951.9,1951.6,0.0011]
[1772433000337,0.001,1952.4,1951.9,4.14426285]
[1772433000483,0.001,1952.3,1951.9,4.14426285]
[1772433000792,0.001,1952.3,1951.7,6.51526285]
[1772433000994,0.001,1952.2,1951.8,4.14426285]
[1772433001520,0.001,1952.2,1951.6,6.51636285]
[1772433001691,4.2149361,1952.1,1951.6,2.3721]
[1772433001885,4.2149361,1952.1,1951.6,0.0011]
[1772433002117,4.12906667,1952.0,1951.6,0.0011]
[1772433002412,4.12806667,1951.9,1951.6,0.0011]
[1772433003020,5.40993561,1951.8,1951.6,0.0011]
[1772433003228,4.12806667,1951.7,1951.3,0.0011]
[1772433003431,4.12906667,1951.7,1951.3,0.0011]
[1772433004219,4.12806667,1951.6,1951.0,0.00163886]
[1772433004818,5.62968378,1951.5,1951.0,0.00163886]
[1772433005012,5.40919816,1951.4,1951.0,0.00163886]
[1772433005643,1.28113149,1951.4,1951.0,0.00163886]
[1772433006052,5.40919816,1951.4,1951.0,0.00163886]
[1772433006217,1.28113149,1951.4,1951.0,0.00163886]
[1772433006412,5.1234808,1951.8,1951.0,0.00163886]
[1772433006413,1.28080331,1951.9,1951.1,4.23292233]
[1772433007024,5.40880792,1952.0,1951.3,5.51411948]
[1772433007228,4.12806667,1951.8,1951.0,5.51591134]
[1772433007644,4.12806667,1951.4,1951.0,0.00163886]
[1772433007843,5.62968378,1951.3,1951.0,0.00163886]
[1772433008152,5.62968378,1951.3,1950.5,11.7256433]
[1772433008153,5.62968378,1951.3,1950.6,1.28161092]
[1772433008355,4.12806667,1951.3,1950.6,5.51453325]
[1772433008550,4.12806667,1951.5,1950.7,4.23292233]
[1772433009119,5.40919816,1951.4,1950.6,4.23292233]
[1772433009326,5.62968378,1951.3,1950.6,4.23292233]
[1772433010123,4.12806667,1951.2,1950.6,4.23292233]
[1772433010326,4.12806667,1951.2,1950.4,7.87965999]
[1772433010637,4.12806667,1951.2,1950.5,4.23292233]
[1772433011016,5.40920121,1951.4,1950.7,4.23292233]
[1772433011230,5.12430099,1951.5,1950.9,4.23292233]
[1772433011231,1.28110904,1951.5,1950.9,4.23292233]
[1772433011547,6.91079282,1951.5,1950.7,4.23292233]
[1772433011955,6.91079282,1951.5,1950.8,0.0011]
[1772433012165,4.12806667,1951.4,1950.8,0.0011]
[1772433012761,4.12806667,1951.2,1950.8,0.0011]
[1772433014273,5.40937867,1951.2,1950.8,0.0011]
[1772433014673,4.1209489,1951.1,1950.8,0.0011]
[1772433014870,1.28124532,1951.3,1950.8,0.0011]
[1772433015369,5.40219422,1951.3,1950.8,0.0011]
[1772433015577,4.1209489,1951.2,1950.8,0.0011]
[1772433016062,1.28124532,1951.3,1950.8,0.0011]
[1772433016685,5.40219422,1951.3,1950.8,0.0011]
[1772433016864,4.1209489,1951.2,1950.8,0.0011]
[1772433017268,8.16070938,1951.8,1950.9,4.04792836]
[1772433017587,5.47485187,1951.8,1951.1,4.04792836]
[1772433017961,4.19396363,1951.7,1951.1,4.04792836]
[1772433018189,5.47490799,1951.7,1950.9,1.28145983]
[1772433018392,5.47490799,1951.7,1950.9,5.32938819]
[1772433018892,1.28229938,1952.0,1951.3,4.04792836]
[1772433019866,5.69558074,1951.8,1951.0,4.04792836]
[1772433020067,6.97788012,1952.0,1951.2,4.04792836]
[1772433020273,5.47626301,1952.0,1951.2,4.04792836]
[1772433021891,4.19396363,1951.9,1951.2,4.04792836]
[1772433023288,1.28086894,1951.8,1951.2,4.04792836]
[1772433023489,5.47483257,1951.8,1951.2,4.04792836]
[1772433023688,4.19396363,1951.7,1951.0,4.04792836]
[1772433023986,5.30161711,1951.6,1951.0,4.04792836]
[1772433024393,3.8,1951.6,1951.0,4.04792836]
[1772433024601,1.28085212,1951.9,1951.1,4.04792836]
[1772433024908,5.47581575,1951.9,1951.1,4.04792836]
[1772433025109,4.19396363,1951.7,1951.1,4.04792836]
[1772433025318,1.28185212,1951.9,1950.9,1.28253718]
[1772433025319,5.69558074,1951.6,1950.9,1.28255936]
[1772433025473,1.28106584,1951.5,1950.9,1.28255936]
[1772433025802,1.28106584,1951.5,1950.9,0.0011]
[1772433025803,4.19396363,1951.3,1950.9,0.0011]
[1772433027609,1.28126281,1951.2,1950.9,0.0011]
[1772433028079,5.47520628,1951.3,1950.9,0.0011]
[1772433028276,3.8,1951.5,1950.9,4.04902836]
[1772433028277,5.08109392,1951.5,1950.9,4.04902836]
[1772433028701,5.08109392,1951.5,1950.9,0.0011]
[1772433028702,9.27505755,1951.5,1950.9,0.0011]
[1772433029000,4.19396363,1951.4,1950.9,0.0011]
[1772433029200,5.69558074,1951.4,1950.9,0.0011]
[1772433029411,4.19396363,1951.1,1950.7,0.0011]
[1772433029707,1.28119715,1951.3,1950.7,4.04902836]
[1772433030307,5.47516078,1951.3,1950.7,4.04902836]
[1772433030471,3.8,1951.5,1950.7,4.04902836]
[1772433030803,5.0811183,1951.5,1950.9,4.04792836]
[1772433031710,5.0811183,1951.5,1950.7,4.04902836]
[1772433031711,9.27508193,1951.5,1950.7,4.04902836]
[1772433031917,1.50161711,1950.9,1950.5,0.0011]
[1772433032069,4.19396363,1951.4,1950.6,4.04792836]
[1772433032272,5.69558074,1951.1,1950.5,0.0011]
[1772433032511,5.69558074,1950.9,1950.5,0.0011]
[1772433032727,1.50161711,1950.7,1950.5,0.0011]
[1772433033007,4.19396363,1950.7,1950.0,5.33148243]
[1772433033705,3.8383963,1951.0,1950.3,4.04792836]
[1772433033871,3.83839608,1951.0,1950.3,4.04792836]
[1772433034397,1.50161711,1950.9,1950.1,4.04792836]
[1772433034590,2.556,1951.1,1950.0,1.28355407]
[1772433034591,4.19396363,1951.1,1950.4,4.04792836]
[1772433035110,1.50161711,1950.8,1950.0,1.28355407]
[1772433035318,1.50161711,1950.6,1950.0,1.28355407]
[1772433035527,5.69558074,1950.6,1950.0,1.28355407]
[1772433035713,1.28172263,1950.5,1950.0,0.00153886]
[1772433036025,5.69558074,1950.3,1950.0,0.00153886]
[1772433036193,4.19396363,1950.2,1950.0,0.00153886]
[1772433037020,1.50161711,1950.1,1949.8,0.0022]
[1772433037396,1.50161711,1950.1,1949.6,0.0011]
[1772433037601,4.19396363,1950.2,1949.6,0.0033]
[1772433037602,1.50161711,1949.9,1949.6,0.0033]
[1772433037898,1.28218278,1949.8,1949.4,0.0011]
[1772433038211,1.28218278,1949.8,1949.5,0.0022]
[1772433038425,5.47614641,1949.8,1949.5,0.0022]
[1772433038606,5.47614641,1949.8,1949.4,0.0011]
[1772433038808,5.47614641,1949.8,1949.4,0.0033]
[1772433039494,1.50161711,1949.6,1949.4,0.0033]
[1772433039696,1.28238009,1949.5,1949.2,0.0011]
[1772433040312,10.68696537,1950.0,1949.2,4.04902836]
[1772433040313,1.28224855,1949.7,1949.2,4.04902836]
[1772433040513,8.19607767,1950.4,1949.2,4.04902836]
[1772433040514,6.6291538,1950.3,1949.4,4.04792836]
[1772433040717,1.50161711,1950.1,1949.4,4.04792836]
[1772433042404,1.50161711,1950.1,1949.2,0.0011]
[1772433042405,1.50161711,1949.9,1949.2,0.0011]
[1772433042622,1.50161711,1949.7,1949.2,0.0011]
[1772433043614,6.97763202,1950.0,1949.2,1.28367407]
[1772433043953,5.47601491,1950.0,1949.2,5.33160243]
[1772433044238,4.19396363,1949.9,1949.2,5.33160243]
[1772433044612,4.19396363,1949.8,1949.2,0.0011]
[1772433044814,2.78370857,1950.0,1949.2,0.0011]
[1772433045014,5.47599138,1950.1,1949.2,0.0011]
[1772433045214,5.47599138,1950.1,1949.2,4.04902836]
[1772433045415,5.69558074,1950.0,1949.2,4.04902836]
[1772433045610,5.69558074,1949.7,1949.2,0.0011]
[1772433045827,4.19396363,1949.6,1949.2,0.0011]
[1772433046529,1.28218278,1949.8,1949.2,0.0011]
[1772433046847,1.2820397,1950.1,1949.2,4.04902836]
[1772433047016,5.47600333,1950.1,1949.2,4.04902836]
[1772433047216,4.19396363,1950.1,1949.2,4.04902836]
[1772433048541,5.52944804,1950.6,1949.9,1.28211703]
[1772433049151,4.24777895,1950.8,1950.0,4.05462476]
[1772433049454,0.00153886,1951.0,1950.0,4.05462476]
[1772433049455,5.53071897,1951.0,1950.0,4.05462476]
[1772433050330,4.24931781,1951.0,1950.0,4.05462476]
[1772433050538,4.24931781,1951.0,1950.2,5.33654456]
[1772433050761,5.53072117,1951.0,1950.2,5.33654456]
[1772433051073,0.001,1951.4,1950.8,6.16171608]
[1772433051271,0.001,1951.4,1950.8,4.05462476]
[1772433051757,0.001,1951.4,1950.9,4.05462476]
[1772433051966,0.001,1951.9,1951.2,2.10709132]
[1772433052270,0.001,1951.9,1951.1,4.05462476]
[1772433052575,0.001,1951.9,1951.2,1.28126281]
[1772433053571,0.001,1951.9,1951.2,3.38835413]
[1772433053784,0.001,1951.9,1951.2,1.28126281]
[1772433054887,0.001,1951.9,1951.2,4.05462476]
[1772433055099,0.001,1951.9,1951.3,4.05462476]
[1772433055244,0.001,1951.9,1951.0,5.3359744]
[1772433055245,2.10709132,1951.8,1951.0,5.3359744]
[1772433055575,4.24777895,1951.7,1951.0,1.28134964]
[1772433056548,0.001,1951.9,1951.0,7.44306572]
[1772433056749,0.001,1951.9,1951.0,5.3359744]
[1772433056948,5.52958226,1951.9,1951.0,5.3359744]
[1772433057170,6.35487027,1951.8,1951.0,3.61334964]
[1772433057375,4.24777895,1951.8,1951.0,3.61334964]
[1772433058649,4.24777895,1951.8,1950.1,4.05462476]
[1772433058851,4.24777895,1951.4,1950.4,4.05462476]
[1772433059048,5.52893996,1951.4,1950.5,5.33634739]
[1772433059250,5.52893996,1951.4,1950.6,4.05462476]
[1772433059479,4.24777895,1951.4,1950.6,4.05462476]
[1772433059678,5.52872336,1951.7,1950.8,4.05462476]
[1772433060247,4.24777895,1951.7,1950.8,4.05462476]
[1772433060465,5.52871648,1951.7,1950.8,4.05462476]
[1772433060976,0.001,1951.9,1951.2,1.28126281]
[1772433061167,4.24877895,1951.9,1951.2,1.28126281]
[1772433061672,0.001,1951.7,1951.2,1.28126281]
[1772433064581,0.001,1951.7,1951.3,4.05462476]
[1772433064882,0.00153886,1952.0,1951.8,6.16171608]
[1772433065068,0.001,1952.4,1951.9,2.331]
[1772433065662,5.12062504,1952.9,1951.9,2.331]
[1772433065663,4.24777895,1953.1,1952.3,2.10709132]
[1772433065863,4.24777895,1953.1,1952.2,4.05462476]
[1772433065864,5.52940196,1953.0,1952.2,4.05462476]
[1772433066178,4.24777895,1952.9,1952.1,2.331]
[1772433066372,4.24777895,1952.6,1951.6,4.05462476]
[1772433066571,4.24777895,1952.6,1951.6,2.331]
[1772433066572,4.24777895,1952.4,1951.6,2.331]
[1772433067381,4.24777895,1952.4,1951.5,4.05462476]
[1772433067684,4.24777895,1952.4,1951.6,2.33]
[1772433067980,2.10709132,1952.3,1951.4,1.28113149]
[1772433068183,4.24777895,1952.0,1951.2,4.05462476]
[1772433068371,4.24777895,1952.0,1951.1,1.28128457]
[1772433068686,1.28080331,1951.9,1951.1,1.28128457]
[1772433068984,9.37095175,1952.0,1951.1,1.28128457]
[1772433068985,5.52853528,1952.0,1951.1,1.28128457]
[1772433069157,5.52852244,1952.0,1951.2,2.10709132]
[1772433069357,5.52852244,1952.0,1951.1,5.33590933]
[1772433070283,4.24777895,1951.9,1951.1,4.05462476]
[1772433070457,4.24777895,1951.9,1951.2,1.28126281]
[1772433070458,1.28086894,1951.8,1951.2,1.28126281]
[1772433071059,5.52845104,1952.2,1951.2,5.33588757]
[1772433071260,4.24777895,1952.6,1951.7,2.10709132]
[1772433071591,4.24777895,1952.6,1951.7,4.43409132]
[1772433071770,1.28027858,1952.7,1951.9,2.10709132]
[1772433072080,1.28027858,1952.7,1951.8,4.05462476]
[1772433072488,9.36879153,1952.8,1951.9,1.28080331]
[1772433073468,9.36879153,1952.8,1951.9,5.33542807]
[1772433073469,5.52799197,1952.8,1951.9,5.33542807]
[1772433073981,0.001,1952.0,1951.9,5.33542807]
[1772433074181,5.52799197,1952.8,1951.9,5.33542807]
[1772433074380,4.24777895,1952.8,1951.9,5.33542807]
[1772433074582,1.28016611,1952.9,1952.1,3.97849101]
[1772433074896,1.28162903,1953.0,1952.2,6.30349101]
[1772433075098,3.78530162,1952.9,1952.2,2.325]
[1772433076707,3.78530162,1952.2,1951.4,1.28113149]
[1772433077069,2.10709132,1952.4,1951.4,5.2596225]
[1772433077402,5.49439566,1952.8,1951.5,8.44296593]
[1772433077403,4.16339952,1952.7,1951.5,8.44296593]
[1772433077606,4.16339952,1952.7,1951.7,2.10709132]
[1772433077772,4.16339952,1952.7,1951.8,4.01287461]
[1772433077973,4.16339952,1952.7,1951.9,2.10709132]
[1772433078220,4.16339952,1952.7,1952.0,2.323]
[1772433078884,1.28034415,1952.6,1952.0,3.60372143]
[1772433079083,5.44371861,1952.7,1952.0,3.60372143]
[1772433079283,5.44367914,1952.7,1952.0,3.60372143]
[1772433080097,5.44367914,1952.7,1952.0,2.323]
[1772433080393,4.16339952,1952.7,1952.0,3.60371912]
[1772433080701,1.28024853,1952.8,1952.0,3.60371912]
[1772433080882,4.16339952,1952.8,1952.0,3.60371912]
[1772433082201,6.27049084,1952.4,1951.6,2.32]
[1772433082399,6.27049084,1952.4,1951.5,5.29394045]
[1772433082711,6.27049084,1952.4,1951.6,2.32]
[1772433082917,1.2805409,1952.3,1951.6,3.60096879]
[1772433084109,5.44392385,1952.4,1951.6,3.60096879]
[1772433084424,5.44392385,1952.4,1951.6,7.6138434]
[1772433085095,1.28046188,1952.5,1951.7,4.01287461]
[1772433085300,1.28039495,1952.6,1951.7,4.01287461]
[1772433086027,1.28039495,1952.6,1951.7,4.01397461]
[1772433087505,1.28039495,1952.6,1951.8,1.28086894]
[1772433087712,5.44379447,1952.6,1951.8,1.28086894]
[1772433088028,4.16339952,1952.6,1951.8,5.29374355]
[1772433088231,4.16339952,1952.6,1951.8,7.40083487]
[1772433088380,4.16339952,1952.6,1951.8,5.29374355]
[1772433088793,4.16339952,1952.6,1951.9,2.317]
[1772433089584,5.44374738,1952.6,1952.0,1.2807377]
[1772433089816,1.28032508,1952.7,1952.0,1.2807377]
[1772433090820,5.4437246,1952.7,1952.0,1.2807377]
[1772433091016,4.16339952,1952.7,1952.0,3.5977377]
[1772433091228,4.16339952,1952.7,1951.7,5.12405081]
[1772433091229,2.10709132,1952.4,1951.7,0.0011]
[1772433091517,4.16339952,1952.6,1951.7,1.28198875]
[1772433091518,1.28040973,1952.5,1951.7,1.28198875]
[1772433091742,4.16339952,1952.4,1951.8,2.317]
[1772433092534,4.16339952,1952.3,1951.7,0.0011]
[1772433093996,5.44374367,1952.6,1951.7,4.01397461]
[1772433094218,1.28034415,1952.6,1951.7,4.01397461]
[1772433094430,4.16339952,1952.5,1951.7,4.01397461]
[1772433096606,7.55096615,1952.4,1951.7,0.0011]
[1772433096815,6.27049084,1952.2,1951.7,2.3151]
[1772433097124,6.27049084,1952.2,1951.8,2.314]
[1772433097506,4.16339952,1952.2,1951.8,2.314]
[1772433098728,1.28067209,1952.1,1951.8,2.3151]
[1772433099700,5.44405512,1952.2,1951.8,2.3151]
[1772433101608,5.12226985,1952.3,1951.8,2.3151]
[1772433101609,1.28058692,1952.3,1951.8,2.3151]
[1772433102098,5.44398644,1952.3,1951.8,2.3151]
[1772433103544,0.001,1952.4,1951.8,7.60883742]
[1772433103849,1.28148017,1952.4,1951.8,7.60883742]
[1772433107351,5.06052044,1952.4,1951.8,6.32797461]
[1772433108354,3.77904027,1951.9,1951.5,0.0011]
[1772433108553,1.50174961,1952.1,1951.5,1.1961]
[1772433108759,5.28078988,1952.1,1951.5,1.1961]
[1772433109259,5.28078988,1952.1,1951.6,2.311]
[1772433109260,3.77904027,1952.0,1951.6,2.311]
[1772433109424,1.28080331,1951.9,1951.6,2.311]
[1772433111145,1.28080331,1951.9,1951.8,0.0011]
[1772433111335,6.56159319,1951.9,1951.6,2.311]
[1772433111743,6.56159319,1951.9,1951.7,0.0011]
[1772433112058,6.56159319,1951.9,1951.5,0.0011]
[1772433112222,3.77904027,1951.8,1951.4,2.3111]
[1772433112658,2.78255292,1951.9,1951.4,2.3111]
[1772433113362,6.56159319,1951.9,1951.4,2.3111]
[1772433113564,3.77904027,1951.8,1951.4,2.3111]
[1772433116267,1.28093456,1951.7,1951.4,2.3111]
[1772433119869,1.28093456,1951.7,1951.4,2.3091]
[1772433121663,1.28093456,1951.7,1951.4,0.0011]
[1772433121970,1.28093456,1951.7,1951.4,2.3091]
[1772433122166,5.05997483,1951.7,1951.4,0.0011]
[1772433122366,5.05997483,1951.7,1951.3,0.0011]
[1772433122367,5.28078988,1951.6,1951.3,0.0011]
[1772433123268,5.28078988,1951.6,1951.5,0.0011]
[1772433124135,5.28078988,1951.6,1951.2,0.0011]
[1772433124136,5.06017176,1951.4,1951.2,0.0011]
[1772433124338,4.50524883,1951.6,1951.2,0.0011]
[1772433124339,5.30174961,1952.0,1951.3,0.0011]
[1772433124566,5.30174961,1952.0,1951.3,3.75638308]
[1772433124567,3.77904027,1951.9,1951.3,3.75638308]
[1772433124771,3.77904027,1951.7,1951.3,0.0011]
[1772433125464,5.28078988,1951.4,1951.0,0.00263886]
[1772433125784,1.50174961,1951.6,1951.0,2.30863886]
[1772433125936,3.77904027,1951.9,1951.1,3.75638308]
[1772433126340,5.05990921,1951.8,1951.2,3.75528308]
[1772433127166,0.001,1952.3,1951.8,3.75528308]
[1772433127472,0.001,1952.3,1951.7,1.50174961]
[1772433127473,1.28154783,1952.3,1951.9,2.305]
[1772433127655,0.001,1952.3,1951.9,2.305]
[1772433128664,0.001,1952.3,1951.4,1.50174961]
[1772433128665,3.77904027,1952.2,1952.0,0.0011]
[1772433128974,3.77904027,1952.2,1951.7,3.58492467]
[1772433129183,0.00153886,1953.0,1952.4,3.75528308]
[1772433129365,0.156518,1953.4,1952.7,3.75528308]
[1772433129676,2.93808984,1953.4,1952.7,3.75528308]
[1772433130066,6.71713011,1953.4,1952.7,3.75528308]
[1772433130380,5.2153805,1953.4,1952.7,3.75528308]
[1772433131481,1.43634023,1953.4,1952.8,1.28021302]
[1772433131651,1.43634023,1953.4,1952.8,5.0354961]
[1772433132485,0.156518,1953.4,1952.8,5.0354961]
[1772433132684,1.43633823,1953.4,1952.9,4.01159889]
[1772433132943,0.156518,1953.4,1952.9,4.01159889]
[1772433133588,6.80319006,1953.4,1952.6,4.01159889]
[1772433133958,1.50174961,1953.0,1952.4,4.01159889]
[1772433134166,1.50174961,1953.0,1952.2,1.2805409]
[1772433134167,3.8650968,1952.9,1952.2,1.28060649]
[1772433134367,3.8650968,1952.9,1952.2,5.29220538]
[1772433134665,3.8650968,1953.2,1952.3,4.01159889]
[1772433134969,1.50174961,1953.0,1952.3,4.01159889]
[1772433135302,5.36684641,1953.0,1952.3,4.01159889]
[1772433135786,6.64697829,1953.0,1952.3,5.29212395]
[1772433135985,1.28005531,1953.1,1952.4,4.01159889]
[1772433136368,1.28092429,1953.3,1952.4,4.01159889]
[1772433137192,5.49222958,1953.2,1952.4,4.01159889]
[1772433137393,1.50174961,1953.0,1952.4,4.01159889]
[1772433137592,5.49222958,1953.2,1952.4,4.01159889]
[1772433138192,6.7722406,1953.2,1952.5,1.28040973]
[1772433138570,6.7722406,1953.2,1952.5,4.98654581]
[1772433138571,5.49222958,1953.2,1952.5,4.98654581]
[1772433138769,0.001,1953.3,1952.6,3.70613608]
[1772433139595,0.001,1953.3,1952.7,3.70613608]
[1772433139765,1.28090089,1953.3,1952.7,3.70613608]
[1772433140186,0.001,1953.3,1952.8,1.28021302]
[1772433140560,0.001,1953.3,1952.8,4.9863491]
[1772433142296,5.11810781,1953.9,1953.0,3.70613608]
[1772433142474,1.50174961,1953.4,1952.5,3.70613608]
[1772433142796,6.99397919,1953.6,1952.5,3.70613608]
[1772433142797,1.50174961,1953.2,1952.7,3.70613608]
[1772433143174,1.50174961,1953.0,1952.4,3.70613608]
[1772433143378,1.50174961,1953.0,1952.4,4.98660743]
[1772433143702,1.50174961,1953.0,1952.4,3.70613608]
[1772433144267,1.28014747,1952.9,1952.4,3.70613608]
[1772433144597,1.28014747,1952.9,1952.1,3.70613608]
[1772433144598,1.50174961,1952.8,1952.1,3.70613608]
[1772433144802,1.50174961,1952.6,1952.0,0.00153886]
[1772433145004,1.50174961,1952.2,1951.6,1.28096356]
[1772433145168,1.50174961,1952.4,1951.6,4.98709964]
[1772433146398,2.78225712,1952.4,1951.7,3.70613608]
[1772433146903,2.78225712,1952.4,1951.6,1.28096356]
[1772433146904,1.28026514,1952.8,1951.9,3.70613608]
[1772433147102,2.78194547,1952.9,1952.1,3.70613608]
[1772433147802,2.78194547,1952.9,1952.5,0.0011]
[1772433149777,1.50174961,1952.7,1952.2,0.0011]
[1772433151117,3.8,1952.8,1952.2,3.70723608]
[1772433151311,5.08022309,1952.8,1952.2,3.70723608]
[1772433153415,5.08022309,1952.8,1952.2,4.98779522]
[1772433154621,5.08022309,1952.8,1951.8,1.50174961]
[1772433154622,1.50174961,1952.5,1951.8,3.57383998]
[1772433154825,1.50174961,1952.3,1951.8,2.293]
[1772433155175,1.50174961,1952.5,1951.8,7.27999302]
[1772433155381,2.512,1952.7,1951.9,3.70613608]
[1772433155615,2.78209376,1952.6,1952.0,1.2807377]
[1772433156121,2.78209376,1952.6,1951.9,4.98688622]
[1772433156329,2.78209376,1952.6,1951.6,5.12399804]
[1772433156330,1.50174961,1952.4,1951.7,1.28089904]
[1772433157797,1.2805409,1952.3,1951.7,1.28089904]
[1772433158420,3.99047997,1952.1,1951.2,0.0011]
[1772433158584,1.50174961,1951.5,1951.2,0.0011]
[1772433158783,1.01523592,1951.5,1951.2,0.0011]
[1772433160106,1.28113149,1951.4,1951.2,0.0011]
[1772433160507,2.29634984,1951.5,1951.2,0.0011]
[1772433160728,0.63608697,1951.4,1951.2,0.0011]
[1772433163619,1.91722021,1951.4,1951.2,0.0011]
[1772433163783,0.63608697,1951.4,1951.2,0.0011]
[1772433166498,5.49222958,1952.0,1951.2,3.70723608]
[1772433166689,3.00349922,1952.4,1951.4,3.70613608]
[1772433166690,5.12263644,1952.2,1951.4,3.70613608]
[1772433166895,10.61486602,1952.2,1951.5,2.291]
[1772433168217,1.28045734,1952.5,1951.7,4.00962543]
[1772433168513,4.93992324,1952.7,1951.8,5.29049437]
[1772433168722,1.50174961,1952.6,1951.8,5.29049437]
[1772433169291,1.50174961,1952.2,1951.7,6.29862543]
[1772433169518,1.28127858,1952.7,1951.7,6.29862543]
[1772433169519,1.50174961,1952.6,1951.8,4.00962543]
[1772433170715,1.28040973,1952.5,1952.0,4.00962543]
[1772433170918,5.75998851,1952.4,1951.7,4.00962543]
[1772433171103,2.10134385,1952.2,1951.7,1.41]
[1772433171695,5.75998851,1952.4,1951.7,2.288]
[1772433172300,2.10134385,1952.4,1951.7,2.288]
[1772433172504,3.65864466,1952.3,1951.7,2.288]
[1772433172702,1.28060649,1952.2,1951.7,2.288]
[1772433173920,2.10134385,1951.9,1951.5,0.0011]
[1772433174821,2.10134385,1951.7,1951.2,0.0011]
[1772433175394,2.10134385,1951.7,1951.0,3.57002314]
[1772433175395,2.10134385,1951.5,1951.0,0.00263886]
[1772433176123,3.65864466,1951.6,1951.0,0.00263886]
[1772433176425,2.10134385,1951.7,1951.0,0.00263886]
[1772433176623,2.10134385,1951.3,1951.0,0.00263886]
[1772433176828,2.10134385,1951.3,1950.7,1.579]
[1772433177727,1.28113149,1951.4,1950.8,4.00962543]
[1772433177956,1.28111696,1951.5,1950.8,4.00962543]
[1772433178710,1.28111696,1951.5,1950.9,5.29108526]
[1772433179415,2.10134385,1951.4,1950.9,2.284]
[1772433179617,2.10134385,1951.6,1951.0,4.00962543]
[1772433179925,1.28098533,1951.7,1951.0,4.00962543]
[1772433180320,5.08098533,1951.7,1951.0,4.00962543]
[1772433180927,5.08098533,1951.7,1951.1,1.28132848]
[1772433181731,5.08098533,1951.7,1951.0,5.29096857]
[1772433181940,5.08098533,1951.7,1951.1,2.283]